bitfinex-derivatives/quotes_ETHF0:USTF0_20250926
["timestamp","ask_amount","ask_price","bid_price","bid_amount"]
[1758929111855,1.31082918,4021.4,4021.3,1.47451]
[1758929112953,1.75812918,4021.4,4021.3,1.47451]
[1758929114059,1.75812918,4021.4,4021.3,1.22451]
[1758929114257,1.75812918,4021.4,4021.3,1.47451]
[1758929120161,1.54312918,4021.4,4021.3,1.47451]
[1758929120465,1.32512918,4021.4,4021.3,1.47451]
[1758929120763,1.54992918,4021.4,4021.3,1.47451]
[1758929123468,1.20166,4020.9,4020.8,3.7259]
[1758929123766,0.44738,4020.7,4020.5,0.75699093]
[1758929123971,1.20168,4020.7,4020.6,1.21549]
[1758929124175,0.7543,4020.7,4020.6,1.42809]
[1758929124576,0.7543,4020.7,4020.6,2.55346986]
[1758929125572,1.20168,4020.7,4020.6,2.10607986]
[1758929125977,1.20168,4020.7,4020.6,2.55346986]
[1758929126777,0.7543,4020.7,4020.6,2.55346986]
[1758929128184,0.44734,4021.1,4020.9,0.44736]
[1758929128386,0.5481,4021.4,4021.3,1.17801]
[1758929128686,1.09712386,4021.4,4021.3,2.55338986]
[1758929129887,1.54442386,4021.4,4021.3,2.55338986]
[1758929130686,1.75062386,4021.4,4021.3,2.55338986]
[1758929133593,1.09712386,4021.4,4021.3,2.55338986]
[1758929134901,1.09712386,4021.4,4021.3,0.9807]
[1758929135092,0.00306228,4021.5,4021.4,0.8703]
[1758929135393,0.00306228,4021.5,4021.4,1.178]
[1758929140693,0.5481,4022.2,4022.1,1.17792]
[1758929140893,0.5481,4022.2,4022.1,2.55329986]
[1758929141087,1.09697902,4022.2,4022.1,2.55329986]
[1758929141482,1.10001348,4022.2,4022.1,2.55329986]
[1758929141687,1.30621348,4022.2,4022.1,2.55329986]
[1758929143388,0.75733446,4022.2,4022.1,2.55329986]
[1758929143796,0.32633446,4022.2,4022.1,2.55329986]
[1758929143994,0.3109,4022.8,4022.7,0.44716]
[1758929144300,0.5261,4022.8,4022.7,2.58893986]
[1758929144907,0.7382232,4022.8,4022.7,2.58893986]
[1758929145600,0.0024232,4022.8,4022.7,2.58893986]
[1758929161009,0.3109,4023.4,4023.3,2.01646986]
[1758929161209,0.5261,4023.4,4023.3,5.79666986]
[1758929161609,0.7358,4023.4,4023.3,5.79666986]
[1758929161916,0.73836078,4023.4,4023.3,5.79666986]
[1758929173617,0.52866078,4023.4,4023.3,5.79666986]
[1758929173916,0.52866078,4023.4,4023.3,4.42129]
[1758929174216,0.52866078,4023.4,4023.3,5.79666986]
[1758929182726,0.31346078,4023.4,4023.3,5.79666986]
[1758929184025,0.00256078,4023.4,4023.3,5.79666986]
[1758929184625,0.00256078,4023.4,4023.3,6.0716016]
[1758929196637,0.89149245,4023.4,4023.3,6.0716016]
[1758929198037,1.74887245,4023.4,4023.3,3.2078]
[1758929198242,1.74887245,4023.4,4023.3,3.4568]
[1758929199343,1.74887245,4023.4,4023.3,3.90389]
[1758929201248,6.74887245,4023.4,4023.3,3.2078]
[1758929201546,1.19654,4022.9,4022.8,3.65495]
[1758929201743,1.74637167,4022.9,4022.8,3.90395]
[1758929204149,1.74637167,4022.9,4022.8,4.11985]
[1758929204345,6.74637167,4022.9,4022.8,3.2078]
[1758929204545,0.7368,4022.3,4022.2,3.65501]
[1758929204848,0.7368,4022.3,4022.2,4.11991]
[1758929205046,0.7368,4022.3,4022.2,4.66141]
[1758929206139,0.3403,4023.0,4022.9,0.44714]
[1758929206340,1.417431,4023.0,4022.9,1.45354]
[1758929206546,1.283631,4023.0,4022.9,1.45354]
[1758929210252,1.416031,4023.0,4022.9,1.12864]
[1758929210449,1.416031,4023.0,4022.9,0.69614]
[1758929211955,1.863151,4023.0,4022.9,0.69614]
[1758929214853,1.416031,4023.0,4022.9,0.44714]
[1758929215149,1.416031,4023.0,4022.9,0.69614]
[1758929215746,1.863151,4023.0,4022.9,0.69614]
[1758929216757,1.863151,4023.0,4022.9,0.44714]
[1758929217160,1.863151,4023.0,4022.9,0.69614]
[1758929217358,1.416031,4023.0,4022.9,1.45354]
[1758929217558,1.283631,4023.0,4022.9,1.45354]
[1758929218056,1.416031,4023.0,4022.9,1.45354]
[1758929221656,1.18395,4022.8,4022.7,3.2078]
[1758929221953,0.7368,4022.4,4022.3,0.7574]
[1758929222152,0.7368,4022.4,4022.3,0.8797]
[1758929222361,0.7368,4022.4,4022.3,1.1287]
[1758929222954,0.7368,4022.4,4022.3,1.4536]
[1758929222955,0.3146,4022.4,4022.3,1.4536]
[1758929223755,0.2065,4022.9,4022.8,0.4325]
[1758929224057,1.06771898,4022.9,4022.8,1.45355]
[1758929224458,1.28341898,4022.9,4022.8,1.45355]
[1758929225057,1.73055898,4022.9,4022.8,1.45355]
[1758929225256,1.28341898,4022.9,4022.8,1.45355]
[1758929225456,1.73055898,4022.9,4022.8,1.45355]
[1758929228662,1.73055898,4022.9,4022.8,1.0064]
[1758929228864,1.73055898,4022.9,4022.8,0.249]
[1758929230157,1.73055898,4022.9,4022.8,0.69615]
[1758929230556,1.73055898,4022.9,4022.8,0.90565]
[1758929232361,1.73055898,4022.9,4022.8,1.24135]
[1758929232558,0.8849,4022.3,4022.2,3.2078]
[1758929232763,1.76001898,4022.3,4022.2,3.4568]
[1758929232966,1.76001898,4022.3,4022.2,3.90401]
[1758929233658,1.76001898,4022.3,4022.2,0.4675]
[1758929233868,1.76001898,4022.3,4022.2,0.91471]
[1758929234361,1.31281898,4022.3,4022.2,1.46581]
[1758929235066,1.76001898,4022.3,4022.2,1.46581]
[1758929238068,1.76001898,4022.3,4022.2,0.249]
[1758929238370,1.76001898,4022.3,4022.2,0.69621]
[1758929238767,1.76001898,4022.3,4022.2,0.91471]
[1758929239063,1.76001898,4022.3,4022.2,0.66571]
[1758929239266,1.76001898,4022.3,4022.2,0.2185]
[1758929239469,1.21341,4022.2,4022.1,0.44722]
[1758929239671,1.76002898,4022.2,4022.1,0.69722]
[1758929239868,1.76002898,4022.2,4022.1,1.25142]
[1758929240663,1.76002898,4022.2,4022.1,1.46682]
[1758929241063,1.31281898,4022.2,4022.1,2.8671316]
[1758929241370,1.09351898,4022.2,4022.1,2.8671316]
[1758929243070,1.54072898,4022.2,4022.1,2.8671316]
[1758929243466,1.54072898,4022.2,4022.1,2.6171316]
[1758929243668,1.54072898,4022.2,4022.1,2.8671316]
[1758929244072,1.54072898,4022.2,4022.1,2.6171316]
[1758929244364,0.54661898,4022.2,4022.1,2.8671316]
[1758929246672,0.54661898,4022.2,4022.1,2.59132178]
[1758929248472,0.66561,4022.3,4022.2,0.8811]
[1758929248774,1.53995838,4022.3,4022.2,1.2168]
[1758929251475,1.09274838,4022.3,4022.2,1.2168]
[1758929252273,1.53994838,4022.3,4022.2,1.2168]
[1758929254876,1.75924838,4022.3,4022.2,1.2168]
[1758929257980,1.31204838,4022.3,4022.2,0.7696]
[1758929258179,1.75924838,4022.3,4022.2,0.7696]
[1758929259082,1.75924838,4022.3,4022.2,1.21681]
[1758929259378,1.75924838,4022.3,4022.2,1.46581]
[1758929259576,1.53994838,4022.3,4022.2,1.46581]
[1758929263380,1.53994838,4022.3,4022.2,2.59031178]
[1758929263381,1.75474838,4022.3,4022.2,2.59031178]
[1758929267289,0.54584838,4022.3,4022.2,2.59031178]
[1758929270181,0.5452,4022.6,4022.5,0.67018]
[1758929270380,1.08927773,4022.6,4022.5,2.57708178]
[1758929271683,1.08927773,4022.6,4022.5,2.70658178]
[1758929272686,1.08927773,4022.6,4022.5,5.91438178]
[1758929274886,1.08927773,4022.6,4022.5,4.78988]
[1758929275189,1.08927773,4022.6,4022.5,5.91438178]
[1758929281092,0.5452,4022.6,4022.5,5.91438178]
[1758929281290,1.08890986,4022.6,4022.5,5.91438178]
[1758929282495,1.08890986,4022.6,4022.5,2.70658178]
[1758929283194,1.30370986,4022.6,4022.5,2.57708178]
[1758929292398,1.30370986,4022.6,4022.5,5.78488178]
[1758929297597,1.75087986,4022.6,4022.5,5.78488178]
[1758929299006,1.75087986,4022.6,4022.5,5.53588178]
[1758929299204,1.75087986,4022.6,4022.5,5.78488178]
[1758929299715,1.75087986,4022.6,4022.5,5.53588178]
[1758929299908,1.75087986,4022.6,4022.5,5.78488178]
[1758929304814,1.08890986,4022.6,4022.5,5.78488178]
[1758929305121,0.54370986,4022.6,4022.5,5.91298178]
[1758929306520,0.54370986,4022.6,4022.5,6.18949105]
[1758929321237,0.87800986,4022.6,4022.5,6.18949105]
[1758929321640,1.32517986,4022.6,4022.5,6.18949105]
[1758929321840,1.08380986,4022.6,4022.5,6.18949105]
[1758929324540,1.53097986,4022.6,4022.5,6.18949105]
[1758929324841,1.08380986,4022.6,4022.5,6.18949105]
[1758929326242,1.53097986,4022.6,4022.5,2.98169105]
[1758929326445,1.08380986,4022.6,4022.5,2.98169105]
[1758929329538,0.54370986,4022.6,4022.5,2.98169105]
[1758929331746,0.87430986,4022.6,4022.5,2.98169105]
[1758929331944,0.54370986,4022.6,4022.5,2.98169105]
[1758929332748,0.87430986,4022.6,4022.5,2.98169105]
[1758929334749,0.87430986,4022.6,4022.5,2.73269105]
[1758929334940,0.87430986,4022.6,4022.5,2.98169105]
[1758929335340,1.32147986,4022.6,4022.5,2.98169105]
[1758929336946,1.32237194,4022.6,4022.5,2.98169105]
[1758929339552,0.87520194,4022.6,4022.5,2.98169105]
[1758929340759,1.32237194,4022.6,4022.5,2.98169105]
[1758929342551,1.32241204,4022.6,4022.5,2.98169105]
[1758929344554,1.54131204,4022.6,4022.5,2.98169105]
[1758929350061,1.09414204,4022.6,4022.5,2.98169105]
[1758929350463,1.54131204,4022.6,4022.5,2.98169105]
[1758929351155,1.09414204,4022.6,4022.5,2.98169105]
[1758929352962,1.54131204,4022.6,4022.5,2.98169105]
[1758929354766,1.09414204,4022.6,4022.5,2.98169105]
[1758929355058,1.54131204,4022.6,4022.5,2.98169105]
[1758929366772,1.09414204,4022.6,4022.5,2.98169105]
[1758929367272,1.54131204,4022.6,4022.5,2.98169105]
[1758929368573,1.54131204,4022.6,4022.5,2.70501166]
[1758929373278,1.54131204,4022.6,4022.5,2.57691166]
[1758929373474,1.76161204,4022.6,4022.5,2.32791166]
[1758929373779,1.76161204,4022.6,4022.5,1.59633166]
[1758929374268,1.76161204,4022.6,4022.5,1.92943166]
[1758929374672,1.76161204,4022.6,4022.5,0.5561]
[1758929374880,1.35038,4022.5,4022.4,3.2078]
[1758929375081,1.89502204,4022.5,4022.4,3.4568]
[1758929375572,1.89502204,4022.5,4022.4,3.2078]
[1758929375982,1.89502204,4022.5,4022.4,3.4568]
[1758929376481,2.2198542,4024.0,4023.9,1.19922]
[1758929376672,3.6524,4024.9,4024.8,0.7522]
[1758929376872,3.6524,4024.9,4024.8,2.12753166]
[1758929377575,3.65557856,4024.9,4024.8,2.13006575]
[1758929378677,3.98317856,4024.9,4024.8,2.13006575]
[1758929379374,3.21097856,4024.9,4024.8,2.13006575]
[1758929379678,0.00317856,4024.9,4024.8,3.25439741]
[1758929380674,0.00317856,4024.9,4024.8,2.13006575]
[1758929387387,0.00317856,4024.9,4024.8,2.57698575]
[1758929389089,0.00317856,4024.9,4024.8,3.70131741]
[1758929392290,0.00317856,4024.9,4024.8,3.70031741]
[1758929392486,0.53927856,4024.9,4024.8,2.57598575]
[1758929393194,0.31737856,4024.9,4024.8,2.57598575]
[1758929393489,0.00317856,4024.9,4024.8,2.57598575]
[1758929393696,1.19848856,4024.9,4024.8,0.00253409]
[1758929393900,6.19848856,4024.9,4024.8,0.00253409]
[1758929394194,6.19848856,4024.9,4024.8,0.25253409]
[1758929396181,6.19848856,4024.9,4024.8,0.00253409]
[1758929396385,6.19848856,4024.9,4024.8,0.25253409]
[1758929403499,1.19848856,4024.9,4024.8,0.78073409]
[1758929405301,1.19848856,4024.9,4024.8,0.47003409]
[1758929406300,1.71069358,4024.9,4024.8,0.47003409]
[1758929409904,1.71069358,4024.9,4024.8,0.80733409]
[1758929410998,1.71069358,4024.9,4024.8,0.47003409]
[1758929416307,1.71069358,4024.9,4024.8,0.25253409]
[1758929421113,1.71069358,4024.9,4024.8,0.46383409]
[1758929423808,0.42980307,4024.9,4024.8,7.57008575]
[1758929424011,0.3186,4025.8,4025.6,0.44683]
[1758929424212,0.5292,4025.8,4025.7,2.12063166]
[1758929424602,3.3388,4026.0,4025.7,2.12063166]
[1758929424603,3.2078,4026.0,4025.9,0.4269]
[1758929424805,0.00174707,4026.0,4025.9,0.7463]
[1758929425005,0.00174707,4026.0,4025.9,7.08732674]
[1758929425406,0.00174707,4026.0,4025.9,5.7463]
[1758929426310,3.2078,4027.0,4026.9,0.7463]
[1758929426504,0.3186,4027.2,4026.9,0.7463]
[1758929426505,0.5292,4027.1,4027.0,0.535]
[1758929426711,0.5292,4027.1,4027.0,0.8803]
[1758929426911,0.7377,4027.1,4027.0,0.7463]
[1758929427318,0.74088909,4027.1,4027.0,0.7463]
[1758929427520,0.74088909,4027.1,4027.0,0.9963]
[1758929428315,0.53238909,4027.1,4027.0,0.9963]
[1758929428509,0.53238909,4027.1,4027.0,2.52808103]
[1758929429323,0.00318909,4027.1,4027.0,2.52808103]
[1758929430322,0.74088909,4027.1,4027.0,2.39408103]
[1758929430716,0.74088909,4027.1,4026.4,0.2113]
[1758929430717,1.30784,4026.5,4026.4,0.2113]
[1758929430918,0.8611,4026.5,4026.4,0.7807]
[1758929431120,1.30784,4026.5,4026.4,0.7807]
[1758929431427,1.30784,4026.5,4026.4,0.5307]
[1758929431725,1.30784,4026.5,4026.4,0.7807]
[1758929434828,0.8611,4026.5,4026.4,0.7807]
[1758929437130,0.8611,4026.5,4026.4,0.5307]
[1758929437330,0.8611,4026.5,4026.4,0.7807]
[1758929437525,0.8611,4026.5,4026.4,0.5307]
[1758929437728,0.8611,4026.5,4026.4,0.7807]
[1758929438622,0.3186,4026.4,4025.8,3.5272]
[1758929438831,0.1234,4026.5,4025.8,4.18531]
[1758929438832,0.7377,4025.9,4025.8,4.18531]
[1758929439027,0.7377,4025.9,4025.8,5.83309103]
[1758929439228,0.7377,4025.9,4025.8,4.18531]
[1758929439529,0.7377,4025.9,4025.8,3.90461]
[1758929439729,0.7377,4025.9,4025.4,0.3194]
[1758929439730,0.44684,4025.6,4025.4,0.3194]
[1758929440028,0.1234,4026.0,4025.4,0.3194]
[1758929440029,0.8611,4025.5,4025.4,0.7463]
[1758929440430,0.8611,4025.5,4025.4,0.9963]
[1758929440625,0.7377,4025.5,4025.4,0.9963]
[1758929442232,1.18455,4025.5,4025.4,0.9963]
[1758929443937,0.7709,4025.1,4025.0,0.7821]
[1758929444234,1.21779,4025.1,4025.0,0.4745]
[1758929445432,0.7709,4025.1,4025.0,1.479]
[1758929445632,1.21779,4025.1,4025.0,1.0321]
[1758929447925,1.21779,4025.1,4025.0,0.7821]
[1758929448125,1.21779,4025.1,4025.0,1.0321]
[1758929450925,1.21779,4025.1,4025.0,0.4745]
[1758929451230,1.21779,4025.1,4025.0,0.25]
[1758929451426,1.21781,4024.9,4024.8,4.83261512]
[1758929451631,1.21781,4024.9,4024.8,3.21033409]
[1758929451833,1.21781,4024.9,4024.8,0.25253409]
[1758929452629,1.21781,4024.9,4024.8,0.00253409]
[1758929452931,1.21781,4024.9,4024.8,0.25253409]
[1758929454629,1.21781,4024.9,4024.8,0.00253409]
[1758929454931,11.32636594,4024.9,4024.8,0.00253409]
[1758929455434,10.82339103,4024.9,4024.8,0.00253409]
[1758929456340,1.21789,4024.2,4024.1,0.5642]
[1758929456539,1.21789,4024.2,4024.1,0.6872]
[1758929457139,1.21983015,4024.2,4024.1,0.78449807]
[1758929457337,1.21983015,4024.2,4024.1,0.47689807]
[1758929457735,1.21983015,4024.2,4024.1,0.81659807]
[1758929457933,1.21983015,4024.2,4024.1,0.25239807]
[1758929458131,1.21983015,4024.2,4024.1,0.47689807]
[1758929458437,1.21983015,4024.2,4024.1,0.81659807]
[1758929458840,1.21983015,4024.2,4024.1,0.56659807]
[1758929459041,1.21983015,4024.2,4024.1,0.81659807]
[1758929459436,1.21983015,4024.2,4024.1,1.03449807]
[1758929459738,1.21983015,4024.2,4024.1,0.78449807]
[1758929459932,1.21983015,4024.2,4024.1,1.03449807]
[1758929461942,1.21983015,4024.2,4024.1,0.22689807]
[1758929462137,5.77284015,4024.2,4023.3,3.2078]
[1758929462339,1.21798,4023.4,4023.3,3.4323]
[1758929462540,1.21798,4023.4,4023.3,3.6823]
[1758929463236,1.21798,4023.4,4023.3,4.02446993]
[1758929463740,1.21798,4023.4,4023.3,4.24236993]
[1758929463935,0.3319,4023.4,4023.3,6.08724096]
[1758929464141,0.44708,4023.4,4023.3,5.64015096]
[1758929464543,0.99378,4023.4,4023.3,5.64015096]
[1758929465143,1.21798,4023.4,4023.3,5.64015096]
[1758929467840,0.99378,4023.4,4023.3,5.64015096]
[1758929472241,0.66188,4023.4,4023.3,5.64015096]
[1758929472443,0.97878,4023.4,4023.3,5.64015096]
[1758929472748,0.97878,4023.4,4023.3,6.08724096]
[1758929472948,0.66188,4023.4,4023.3,6.08724096]
[1758929473746,1.76651697,4026.0,4024.2,11.17473]
[1758929473949,11.16277,4028.6,4023.6,2.487]
[1758929473950,0.1306,4026.5,4026.1,1.11696]
[1758929474248,0.4258,4027.3,4026.4,6.00336206]
[1758929474444,0.4258,4027.3,4027.2,1.84444103]
[1758929474639,0.4258,4027.3,4027.2,2.10744103]
[1758929474949,0.4286167,4027.3,4027.2,2.11010627]
[1758929475342,0.2229167,4027.3,4027.2,2.11010627]
[1758929475844,0.022,4027.9,4027.2,6.66344627]
[1758929476050,0.022,4027.9,4027.8,5.05217103]
[1758929476244,0.022,4027.9,4027.8,5.31517103]
[1758929476646,0.022,4027.9,4027.8,8.49963894]
[1758929476847,0.02392772,4027.9,4027.8,8.49963894]
[1758929477244,0.24402772,4027.9,4027.8,8.89935299]
[1758929477450,0.24402772,4027.9,4027.8,9.16135299]
[1758929477852,0.56092772,4027.9,4027.8,9.16135299]
[1758929478352,0.56092772,4027.9,4027.8,8.49863894]
[1758929481054,0.34082772,4027.9,4027.8,8.49863894]
[1758929485158,0.56092772,4027.9,4027.8,8.23663894]
[1758929485460,0.56092772,4027.9,4027.8,8.49863894]
[1758929487559,0.34082772,4027.9,4027.8,8.49863894]
[1758929489259,0.76662772,4027.9,4027.8,8.49763894]
[1758929489756,0.34082772,4027.9,4027.8,8.49763894]
[1758929490657,0.34082772,4027.9,4027.8,7.89907167]
[1758929491751,0.56092772,4027.9,4027.8,7.89907167]
[1758929492463,0.76662772,4027.9,4027.8,7.89907167]
[1758929492664,0.76662772,4027.9,4027.8,46.62507167]
[1758929496367,0.76662772,4027.9,4027.8,3.65439]
[1758929496567,0.76662772,4027.9,4027.8,3.91439]
[1758929498660,0.76662772,4027.9,4027.8,5.03542984]
[1758929499364,0.76662772,4027.9,4027.8,5.69814389]
[1758929500370,0.76662772,4027.9,4027.8,5.03542984]
[1758929500567,0.76662772,4027.9,4027.8,5.92153387]
[1758929501370,0.76662772,4027.9,4027.8,6.37092292]
[1758929502370,0.76662772,4027.9,4027.8,5.03542984]
[1758929503976,0.1306,4028.0,4027.9,0.44658]
[1758929504269,0.3376,4028.0,4027.9,2.67570267]
[1758929505074,0.34000243,4028.0,4027.9,2.67570267]
[1758929505465,0.34000243,4028.0,4027.9,0.44658]
[1758929506073,0.67490243,4028.0,4027.9,0.44658]
[1758929506371,0.67490243,4028.0,4027.9,2.6777288]
[1758929506764,0.67490243,4028.0,4027.9,0.44658]
[1758929506967,0.89130243,4028.0,4027.9,0.44658]
[1758929507474,0.46790243,4028.0,4027.9,0.44658]
[1758929507676,0.46790243,4028.0,4027.9,39.42458]
[1758929508270,0.46790243,4028.0,4027.9,0.44658]
[1758929508574,0.67490243,4028.0,4027.9,39.42358]
[1758929509969,0.89130243,4028.0,4027.9,0.44658]
[1758929510176,0.89130243,4028.0,4027.9,2.93668593]
[1758929513781,0.89130243,4028.0,4027.9,2.67768593]
[1758929513979,0.89130243,4028.0,4027.9,0.70458]
[1758929516674,0.89130243,4028.0,4027.9,0.44658]
[1758929516876,0.89130243,4028.0,4027.9,0.70458]
[1758929520382,0.37222243,4028.0,4027.9,0.70458]
[1758929520579,0.49932243,4028.0,4027.9,0.70458]
[1758929521587,0.1306,4028.5,4028.4,0.44652]
[1758929521776,0.554,4029.0,4028.9,1.56750984]
[1758929521982,0.554,4029.5,4029.4,0.44641]
[1758929522180,0.554,4029.5,4029.4,6.37124539]
[1758929522582,0.89065309,4029.5,4029.4,6.37124539]
[1758929522783,0.89065309,4029.5,4029.4,5.03324984]
[1758929523178,0.89065309,4029.5,4029.4,6.37045826]
[1758929523382,0.89065309,4029.5,4029.4,5.03324984]
[1758929524093,0.89065309,4029.5,4029.4,6.36950223]
[1758929524591,0.67425309,4029.5,4029.4,6.36950223]
[1758929525290,0.46725309,4029.5,4029.4,6.36950223]
[1758929525495,0.67425309,4029.5,4029.4,6.36950223]
[1758929525790,0.5505,4030.5,4030.4,0.4463]
[1758929526090,0.5505,4030.5,4030.4,5.03313984]
[1758929526693,0.55243946,4030.5,4030.4,5.03586466]
[1758929527193,0.55243946,4030.5,4030.4,5.92440596]
[1758929527590,0.55243946,4030.5,4030.4,5.03586466]
[1758929527797,0.64693946,4030.5,4030.4,6.37120537]
[1758929528291,0.64693946,4030.5,4030.4,5.03586466]
[1758929528494,0.85603946,4030.5,4030.4,5.03586466]
[1758929529286,0.85603946,4030.5,4030.4,4.77786466]
[1758929529485,0.85603946,4030.5,4030.4,5.03586466]
[1758929530598,0.85603946,4030.5,4030.4,4.77786466]
[1758929530802,0.85603946,4030.5,4030.4,5.03586466]
[1758929531001,0.85603946,4030.5,4030.4,4.77786466]
[1758929531196,0.85603946,4030.5,4030.4,5.03586466]
[1758929532002,0.64693946,4030.5,4030.4,5.03586466]
[1758929532500,0.85603946,4030.5,4030.4,5.03586466]
[1758929533592,0.43993946,4030.5,4030.4,5.03586466]
[1758929533793,0.65783946,4030.5,4030.4,5.03586466]
[1758929534099,0.5654,4031.0,4030.9,1.16405]
[1758929534294,0.5654,4031.5,4031.4,0.65969]
[1758929534500,0.5654,4031.5,4031.4,2.03872984]
[1758929535095,0.56825031,4031.5,4031.4,2.03872984]
[1758929535295,0.56825031,4031.5,4031.4,5.24652984]
[1758929536007,0.5559,4032.2,4032.1,1.17131]
[1758929536305,0.4603,4032.9,4032.8,0.96534]
[1758929536511,0.4603,4032.9,4032.8,2.34537984]
[1758929536704,0.4603,4032.9,4032.8,2.55127984]
[1758929536902,0.4603,4032.9,4032.8,1.43024]
[1758929537202,0.02410466,4032.9,4032.8,1.43024]
[1758929537607,0.24200466,4032.9,4032.8,1.43024]
[1758929538111,0.80040466,4032.9,4032.8,2.55127984]
[1758929538608,0.80040466,4032.9,4032.8,1.43024]
[1758929540409,0.80040466,4032.9,4032.8,0.9842]
[1758929540906,5.80040466,4032.9,4032.8,0.5638]
[1758929543810,5.80040466,4032.9,4032.8,0.5193]
[1758929544003,5.80040466,4032.9,4032.8,0.7773]
[1758929545004,0.80040466,4032.9,4032.8,0.9832]
[1758929545705,0.44604,4032.8,4032.7,0.3058]
[1758929545913,0.338,4032.7,4032.6,3.65386]
[1758929546114,0.7763,4032.7,4032.6,3.91186]
[1758929546315,0.7763,4032.7,4032.6,4.43116]
[1758929547111,0.4383,4032.7,4032.6,4.63706]
[1758929548007,0.7763,4032.7,4032.6,4.63706]
[1758929550919,0.4383,4032.7,4032.6,4.63706]
[1758929551914,0.02410466,4032.9,4032.8,0.86544]
[1758929552217,0.02410466,4032.9,4032.8,1.42824]
[1758929552415,0.80040466,4032.9,4032.8,0.9832]
[1758929553006,1.24643466,4032.9,4032.8,0.9832]
[1758929554023,1.24643466,4032.9,4032.8,1.42924]
[1758929554212,1.24643466,4032.9,4032.8,0.44604]
[1758929554418,1.24643466,4032.9,4032.8,0.7773]
[1758929555119,0.90843466,4032.9,4032.8,0.9832]
[1758929555323,0.90843466,4032.9,4032.8,1.42924]
[1758929555515,0.46240466,4032.9,4032.8,1.42924]
[1758929556021,0.90843466,4032.9,4032.8,1.42924]
[1758929556224,0.46240466,4032.9,4032.8,1.42924]
[1758929556624,0.02410466,4032.9,4032.8,1.42924]
[1758929560629,0.02410466,4032.9,4032.8,2.82292669]
[1758929560822,1.24643466,4032.9,4032.8,0.5193]
[1758929561017,1.24643466,4032.9,4032.8,0.7763]
[1758929561218,1.24643466,4032.9,4032.8,0.5193]
[1758929561426,1.24643466,4032.9,4032.8,0.7763]
[1758929564126,1.24643466,4032.9,4032.8,1.4406697]
[1758929565217,1.24643466,4032.9,4032.8,1.0026]
[1758929566220,1.24643466,4032.9,4032.8,1.88969037]
[1758929566929,0.02410466,4032.9,4032.8,1.44864]
[1758929567123,0.23020466,4032.9,4032.8,4.1776674]
[1758929567426,0.23020466,4032.9,4032.8,3.9206674]
[1758929567626,0.23020466,4032.9,4032.8,2.84232669]
[1758929567823,0.02410466,4032.9,4032.8,7.84232669]
[1758929568015,0.02410466,4032.9,4032.8,2.84232669]
[1758929572328,0.44710466,4032.9,4032.8,2.84232669]
[1758929572633,0.78490466,4032.9,4032.8,2.78586828]
[1758929572830,0.78490466,4032.9,4032.8,2.33982828]
[1758929573028,0.44604,4032.8,4032.7,1.33722828]
[1758929573327,0.86908,4032.4,4032.3,0.66875018]
[1758929573532,1.20688,4032.4,4032.3,0.66875018]
[1758929573718,1.20688,4032.4,4032.3,0.92575018]
[1758929573918,6.20688,4032.4,4032.3,0.74491958]
[1758929574117,6.20688,4032.4,4032.1,3.2078]
[1758929574118,1.2069,4032.2,4032.1,3.2078]
[1758929574320,1.2069,4032.2,4032.1,3.2037058]
[1758929574530,0.3378,4031.7,4031.6,3.2078]
[1758929574724,0.7608,4031.7,4031.6,3.4648]
[1758929575324,0.7608,4031.7,4031.6,3.7737]
[1758929577026,0.7608,4031.7,4031.6,3.9874]
[1758929577233,0.7608,4031.7,4031.6,4.2137]
[1758929579632,0.44621,4031.2,4031.1,3.7304]
[1758929579822,1.20701,4031.2,4031.1,3.4648]
[1758929580140,1.20701,4031.2,4031.1,1.0059]
[1758929580329,0.86921,4031.2,4031.1,1.0059]
[1758929581534,0.86921,4031.2,4031.1,0.7489]
[1758929581736,1.20701,4031.2,4031.1,1.0059]
[1758929582230,0.86927,4030.7,4030.6,5.04148669]
[1758929582430,0.65237,4030.7,4030.6,5.29848669]
[1758929582736,0.44627,4030.7,4030.6,5.60738669]
[1758929583029,0.44627,4030.8,4030.7,0.7489]
[1758929583222,0.44627,4030.8,4030.7,1.0059]
[1758929589535,0.44625,4030.9,4030.8,0.7653]
[1758929589737,1.39368669,4032.1,4030.8,0.7653]
[1758929589738,3.67793466,4032.9,4032.8,0.7653]
[1758929589941,3.77950466,4032.9,4032.8,0.9203]
[1758929590141,3.77950466,4032.9,4032.8,0.7653]
[1758929590142,4.00060466,4032.9,4032.8,0.7653]
[1758929590332,4.00060466,4032.9,4032.8,1.0253]
[1758929590740,4.00060466,4032.9,4032.8,0.689]
[1758929591040,0.7687,4032.6,4032.0,0.1325]
[1758929591241,0.5476,4032.0,4031.9,0.7653]
[1758929591441,0.2221,4032.0,4031.9,1.0253]
[1758929592346,0.2221,4032.0,4031.9,0.7653]
[1758929592845,0.8875,4032.0,4031.9,0.689]
[1758929593541,0.8875,4032.0,4031.7,3.2078]
[1758929593542,0.75934,4031.9,4031.7,3.2078]
[1758929593736,0.7392,4031.8,4031.7,3.2078]
[1758929593935,0.7392,4031.8,4031.7,3.6793]
[1758929594142,0.7392,4031.8,4031.7,3.4193]
[1758929594435,0.7392,4031.8,4031.7,3.6793]
[1758929595644,0.7392,4031.8,4031.7,4.2183]
[1758929597043,0.5194,4031.8,4031.7,4.2183]
[1758929597441,3.2078,4033.0,4032.8,0.7505]
[1758929597632,3.2078,4033.0,4032.8,2.40318669]
[1758929598036,3.65382,4033.0,4032.8,2.40318669]
[1758929598545,3.2078,4033.0,4032.8,1.0095]
[1758929599437,3.65382,4033.0,4032.8,1.0095]
[1758929599838,3.2078,4033.0,4032.8,1.0095]
[1758929600142,0.446,4033.2,4032.8,1.0095]
[1758929601043,0.44601,4033.1,4032.8,1.0095]
[1758929601843,0.44602,4033.0,4032.8,1.0095]
[1758929602944,0.54350466,4032.9,4032.8,1.0105]
[1758929604147,1.20933466,4032.9,4032.8,0.26]
[1758929604538,1.20933466,4032.9,4032.8,0.4715]
[1758929604848,0.54350466,4032.9,4032.8,1.0105]
[1758929605042,0.02410466,4032.9,4032.8,1.0105]
[1758929609447,0.02410466,4032.9,4032.8,1.45654]
[1758929611951,0.98953466,4032.9,4032.8,1.45654]
[1758929612454,0.54350466,4032.9,4032.8,1.45654]
[1758929613157,0.89613466,4032.9,4032.8,0.91654]
[1758929613652,1.20933466,4032.9,4032.8,1.45554]
[1758929614552,0.76330466,4032.9,4032.8,1.45554]